bitfinex/quotes_ETHUSD_20250603
["timestamp","ask_amount","ask_price","bid_price","bid_amount"]
[1748919928118,4.60755159,2612.8,2612.2,3.82815782]
[1748919928119,4.60760727,2612.8,2612.2,3.82815782]
[1748919928305,3.82745934,2612.7,2612.1,3.86658411]
[1748919928684,3.82761764,2612.6,2612.1,3.82830679]
[1748919928887,3.82761764,2612.6,2611.9,3.84858654]
[1748919928888,3.8276923,2612.6,2612.0,3.82845426]
[1748919929422,3.82783292,2612.5,2611.9,3.84861865]
[1748919929625,3.82765802,2612.6,2612.0,3.82846064]
[1748919930308,4.64561335,2613.1,2612.5,3.82765284]
[1748919930495,4.053,2613.0,2612.5,3.84765284]
[1748919930701,7.88001906,2613.0,2612.5,0.02]
[1748919931019,7.88001906,2613.0,2612.5,3.84774115]
[1748919931020,4.053,2613.0,2612.5,3.84774115]
[1748919931422,7.88004679,2613.0,2612.5,0.02]
[1748919931594,4.053,2613.0,2612.5,3.84773879]
[1748919931796,3.82731169,2612.8,2612.2,3.82805697]
[1748919931981,4.62986397,2612.9,2612.3,3.82802808]
[1748919932183,0.8026,2612.9,2612.3,3.82804425]
[1748919932399,0.8026,2612.9,2612.4,3.82781584]
[1748919932720,4.053,2613.0,2612.3,3.82798836]
[1748919932909,3.82719102,2612.9,2612.3,4.5956021]
[1748919933279,7.88008738,2613.0,2612.4,3.82786045]
[1748919934307,7.88008738,2613.0,2612.3,0.76761374]
[1748919934308,3.82720416,2612.9,2612.3,4.595598]
[1748919934519,3.82727988,2612.9,2612.3,0.76761374]
[1748919935031,3.82727988,2612.9,2612.3,4.59564743]
[1748919935327,3.82727988,2612.9,2612.4,0.46156474]
[1748919935637,4.60090148,2613.1,2612.4,4.28937589]
[1748919936016,4.053,2613.0,2612.5,3.82771058]
[1748919936217,7.88002202,2613.0,2612.4,4.28941799]
[1748919936735,3.82702202,2613.0,2612.4,4.28941799]
[1748919936934,4.053,2613.0,2612.5,3.8276475]
[1748919937234,8.69002995,2613.6,2613.0,3.82692391]
[1748919937442,4.28780721,2613.7,2613.1,0.0382661]
[1748919937733,3.82614018,2613.6,2613.0,3.82692168]
[1748919938230,3.82614018,2613.6,2612.9,9.07125392]
[1748919938432,3.82614018,2613.6,2612.9,6.95322376]
[1748919938631,3.82614018,2613.6,2613.0,3.82690035]
[1748919938931,3.82614018,2613.6,2613.1,0.03826431]
[1748919939137,7.87914018,2613.6,2613.1,0.03826431]
[1748919939302,7.87914018,2613.6,2613.0,3.82690035]
[1748919939503,4.053,2613.6,2613.1,3.86510328]
[1748919939702,7.87905368,2613.7,2613.1,3.86510328]
[1748919939915,4.053,2613.7,2613.2,3.82664595]
[1748919940302,4.053,2613.7,2613.2,3.84664595]
[1748919940912,4.8628,2613.8,2613.3,0.038263]
[1748919941103,0.8108,2613.8,2613.3,3.86477688]
[1748919941607,3.84574975,2613.9,2613.4,0.38847769]
[1748919941804,0.7554,2613.7,2613.2,8.39470457]
[1748919942019,0.7554,2613.7,2613.3,3.82655851]
[1748919942210,0.7554,2613.7,2613.4,3.82641837]
[1748919942552,0.7754,2613.9,2613.4,3.82641837]
[1748919943059,4.60114094,2613.9,2613.3,3.82653176]
[1748919943450,4.60114094,2613.9,2613.2,8.39470457]
[1748919943451,4.60114094,2613.9,2613.4,3.8264236]
[1748919943752,4.60114094,2613.9,2613.3,3.82653368]
[1748919943753,4.60114714,2613.9,2613.3,3.82653368]
[1748919944512,4.60114714,2613.9,2613.4,3.82642609]
[1748919945214,1.61805715,2613.9,2613.2,8.39470457]
[1748919945428,1.61805715,2613.9,2613.3,0.03826113]
[1748919945658,3.82596199,2613.8,2613.3,3.82653849]
[1748919945853,4.60116448,2613.9,2613.3,3.82653849]
[1748919946226,4.60111234,2613.9,2613.3,3.82653849]
[1748919947556,3.82588399,2613.8,2613.3,3.82653849]
[1748919947770,4.60118756,2613.9,2613.3,3.82653849]
[1748919948157,3.82587598,2613.8,2613.2,4.22137034]
[1748919948626,3.82587598,2613.8,2613.3,3.82653101]
[1748919949265,3.82587598,2613.8,2613.2,5.02620021]
[1748919949499,3.82609073,2613.7,2613.2,0.80482386]
[1748919949640,3.82587598,2613.8,2612.6,3.82754329]
[1748919949641,3.82655041,2613.4,2612.8,3.82731169]
[1748919950363,3.82655041,2613.4,2612.9,3.82713865]
[1748919951339,3.82655041,2613.4,2612.9,3.82715178]
[1748919951683,3.82655041,2613.4,2612.8,11.8272583]
[1748919952202,3.82655041,2613.4,2612.9,3.82716334]
[1748919953495,0.8177,2613.6,2613.0,3.82699542]
[1748919953815,0.8177,2613.6,2613.1,0.03826645]
[1748919953959,0.8177,2613.6,2613.1,0.02]
[1748919954378,0.8177,2613.6,2613.1,3.84683169]
[1748919954875,0.8177,2613.6,2613.2,2.57537138]
[1748919955188,4.64385092,2613.6,2613.2,0.03826267]
[1748919956586,4.64385092,2613.6,2613.1,0.02]
[1748919956894,4.64385092,2613.6,2613.1,0.05826268]
[1748919957321,4.64385092,2613.6,2613.1,0.02]
[1748919958034,4.5762357,2613.8,2613.2,3.82662383]
[1748919958317,4.5762357,2613.8,2613.2,4.21634843]
[1748919958520,3.82601354,2613.7,2613.2,4.21634843]
[1748919961121,3.82601354,2613.7,2613.2,0.3897246]
[1748919961320,3.82601354,2613.7,2613.2,3.82671329]
[1748919961481,3.82601354,2613.7,2613.2,1.09706527]
[1748919961813,4.57617226,2613.8,2613.3,3.82652427]
[1748919962018,3.82600248,2613.7,2613.2,3.82659294]
[1748919962394,3.82600248,2613.7,2613.1,5.3208293]
[1748919963014,0.7503,2613.8,2613.1,1.49402021]
[1748919963215,3.82660251,2613.3,2612.7,8.02]
[1748919963416,4.61680251,2613.3,2612.7,8.02]
[1748919963782,4.61680251,2613.3,2612.7,11.84738721]
[1748919963997,4.61680251,2613.3,2612.7,13.9774331]
[1748919964218,4.61680251,2613.3,2612.7,13.97736259]
[1748919964383,4.61680251,2613.3,2612.8,3.82730587]
[1748919964607,0.7902,2613.3,2612.8,3.82730587]
[1748919964943,3.82672608,2613.2,2612.7,13.97743098]
[1748919965521,4.61684564,2613.3,2612.8,3.82727725]
[1748919966307,0.7902,2613.3,2612.8,3.82727725]
[1748919966535,4.61679312,2613.3,2612.8,3.82727725]
[1748919966734,4.61679312,2613.3,2613.0,3.82701802]
[1748919966735,0.7902,2613.3,2613.0,3.82701802]
[1748919966934,0.7902,2613.3,2612.9,0.03826596]
[1748919967137,0.7902,2613.3,2613.0,3.82689255]
[1748919967338,0.7902,2613.3,2613.1,0.03826339]
[1748919967661,0.807,2613.5,2613.1,3.86511868]
[1748919967954,4.07,2613.9,2613.4,3.8264165]
[1748919968105,3.82594585,2613.8,2613.2,9.08983342]
[1748919968309,3.82594585,2613.8,2613.2,9.0792829]
[1748919968755,3.82584742,2613.8,2613.2,0.02]
[1748919968935,3.82612765,2613.7,2613.2,0.02]
[1748919969307,3.82612765,2613.7,2613.2,3.84669892]
[1748919969506,3.82612765,2613.7,2613.2,0.39168823]
[1748919969708,3.82651183,2613.4,2612.8,12.13377949]
[1748919969959,0.02,2613.9,2613.2,0.02]
[1748919970159,0.02,2613.9,2613.4,3.82633416]
[1748919970313,0.02,2613.9,2613.5,0.03825854]
[1748919970937,0.8138,2613.8,2613.4,3.82633416]
[1748919971145,0.8138,2613.8,2613.3,3.82651156]
[1748919971451,0.8138,2613.8,2613.4,3.82635245]
[1748919971629,0.8138,2613.8,2613.3,1.32952948]
[1748919971831,3.82608053,2613.7,2613.2,0.37899268]
[1748919972060,3.82608053,2613.7,2613.2,3.82671404]
[1748919972259,3.82608053,2613.7,2613.1,3.82683419]
[1748919973372,3.82602688,2613.7,2613.2,3.86496046]
[1748919973576,3.82602688,2613.7,2613.2,3.82669764]
[1748919973779,4.67458405,2613.7,2613.1,3.8650665]
[1748919974276,0.8138,2613.8,2613.2,3.82671025]
[1748919974452,4.8628,2613.8,2613.4,3.82633959]
[1748919974773,0.02,2613.9,2613.5,3.8644761]
[1748919975077,0.02,2613.9,2613.6,3.82610481]
[1748919975279,0.02,2613.9,2613.6,2.80800186]
[1748919975442,0.02,2613.9,2613.6,6.63410512]
[1748919975838,0.02,2613.9,2613.8,6.65384928]
[1748919976045,0.8099,2614.8,2614.3,3.82506008]
[1748919976243,0.8099,2614.8,2614.4,2.80800186]
[1748919976664,4.63437984,2614.8,2614.3,8.0]
[1748919976858,0.8099,2614.8,2613.8,2.82800186]
[1748919977097,0.8194,2614.4,2613.9,8.0]
[1748919977801,3.82530645,2614.2,2613.5,3.82615891]
[1748919978015,0.8194,2614.3,2613.6,3.82606989]
[1748919978163,3.82544149,2614.1,2613.6,8.0]
[1748919978997,3.82527753,2614.2,2613.6,3.82602369]
[1748919979203,7.87327753,2614.2,2613.6,3.82602369]
[1748919979397,8.498072,2614.2,2613.6,3.82602369]
[1748919979813,3.82558464,2614.0,2613.4,11.82637406]
[1748919980114,3.8254485,2614.1,2613.5,3.82626787]
[1748919980922,0.7521,2613.8,2613.0,0.02]
[1748919981227,4.57826127,2613.6,2612.8,3.847221]
[1748919981376,3.82637992,2613.5,2612.9,3.82713591]
[1748919981581,3.8264538,2613.4,2613.0,8.0]
[1748919981772,3.826332,2613.5,2613.0,8.0]
[1748919983380,3.82647302,2613.4,2612.8,13.28736759]
[1748919983575,3.82673744,2613.2,2612.6,0.02]
[1748919983920,0.7973,2613.1,2612.7,3.82744958]
[1748919984094,0.7973,2613.1,2612.5,3.82774682]
[1748919984095,4.62430683,2613.1,2612.3,3.82794074]
[1748919984291,4.048,2613.2,2612.1,3.84821885]
[1748919984292,3.82788831,2612.5,2612.1,0.02]
[1748919984511,0.7973,2612.4,2611.5,0.1888731]
[1748919984709,0.7973,2612.4,2611.0,3.8298626]
[1748919984710,1.28183,2612.4,2611.1,0.02]
[1748919985017,0.8007,2612.3,2611.4,3.82927692]
[1748919985224,3.8284834,2612.1,2611.4,3.82927692]
[1748919985392,3.82820282,2612.2,2611.6,3.82897367]
[1748919985596,4.94213529,2612.2,2611.5,13.24041613]
[1748919985801,4.94213529,2612.2,2611.5,17.06962463]
[1748919985802,3.82839098,2612.1,2611.5,17.06962463]
[1748919985987,4.94213529,2612.2,2611.6,3.82896172]
[1748919986188,3.82837824,2612.1,2611.3,3.83450451]
[1748919986415,0.8007,2612.3,2611.4,0.03828779]
[1748919986722,4.048,2612.0,2611.4,1.34288172]
[1748919987024,4.048,2612.0,2611.6,8.0]
[1748919987235,4.048,2612.2,2611.7,3.82892368]
[1748919987733,4.8487,2612.3,2611.8,3.82874239]
[1748919987931,4.8487,2612.3,2611.6,17.06947323]
[1748919987932,4.8487,2612.3,2611.7,3.82888119]
[1748919988134,0.8007,2612.3,2611.8,3.82874976]
[1748919988351,4.8497,2612.3,2611.7,3.86715352]
[1748919988542,0.8007,2612.3,2612.0,3.82836688]
[1748919988736,0.8007,2612.3,2611.8,8.0]
[1748919988942,3.82829425,2612.2,2611.5,13.24041613]
[1748919989098,3.82829425,2612.2,2611.6,8.0]
[1748919989300,7.8762536,2612.2,2611.5,3.82915645]
[1748919989719,0.8007,2612.3,2611.5,1.81769186]
[1748919989922,0.38918008,2613.0,2611.5,1.77940428]
[1748919989923,7.87628485,2612.2,2611.5,1.77940428]
[1748919990122,0.8013,2612.1,2611.6,0.03828699]
[1748919990343,0.8013,2612.1,2611.4,8.03828654]
[1748919990542,0.8013,2612.1,2611.3,0.005]
[1748919990946,4.62968356,2612.1,2611.6,8.0]
[1748919991131,4.62968356,2612.1,2611.5,8.0]
[1748919991132,2.05187893,2612.1,2611.5,8.0]
[1748919991337,3.82848564,2612.0,2611.5,8.0]
[1748919991738,5.88032041,2612.1,2611.5,8.0]
[1748919992254,3.82851373,2612.0,2611.5,8.0]
[1748919992454,3.82863049,2611.9,2611.5,8.0]
[1748919992617,3.82863049,2611.9,2611.3,0.005]
[1748919992618,3.82906208,2611.7,2611.3,0.005]
[1748919992819,0.7674,2611.5,2611.3,0.005]
[1748919993046,4.5966711,2611.5,2611.3,0.005]
[1748919993352,0.7674,2611.5,2611.3,0.005]
[1748919993717,5.24041613,2612.8,2611.3,0.005]
[1748919993718,0.8305,2611.8,2611.4,8.0382916]
[1748919993914,0.8305,2611.8,2611.3,0.005]
[1748919994145,3.82895534,2611.7,2611.3,0.005]
[1748919994343,4.65931857,2611.8,2611.3,0.005]
[1748919994932,4.049,2611.7,2611.3,0.005]
[1748919995122,4.8795,2611.8,2611.3,0.005]
[1748919995322,3.82896897,2611.7,2611.3,0.005]
[1748919995525,3.82892368,2611.7,2611.3,0.005]
[1748919995887,3.82918589,2611.6,2611.3,0.005]
[1748919996063,1.25367326,2611.8,2611.3,0.005]
[1748919996361,0.8281,2612.0,2611.3,5.24541613]
[1748919996540,5.52722821,2612.0,2611.4,3.86765262]
[1748919996739,1.69865539,2612.0,2611.4,3.86765262]
[1748919996966,1.69865539,2612.0,2611.5,3.82916991]
[1748919997166,1.69865539,2612.0,2611.5,3.82912413]
[1748919997466,1.69865539,2612.0,2611.4,8.03828907]
[1748919997657,0.8281,2612.0,2611.5,3.8290818]
[1748919998462,0.8281,2612.0,2611.6,3.82903795]
[1748919998657,0.8281,2612.0,2611.5,3.8291575]
[1748919998849,0.8281,2612.0,2611.5,3.82921692]
[1748919999471,0.8281,2612.0,2611.5,3.82909093]
[1748919999773,0.8281,2612.0,2611.5,3.82921692]
[1748920000577,0.8281,2612.0,2611.6,3.82905727]
[1748920000778,4.65659346,2612.0,2611.4,8.0]
[1748920000937,4.65659346,2612.0,2611.4,8.03828847]
[1748920001136,0.8281,2612.0,2611.5,3.82917703]
[1748920001739,4.65663356,2612.0,2611.4,11.82930619]
[1748920002078,3.82863348,2611.9,2611.4,11.82930619]
[1748920002312,5.48759914,2612.0,2611.4,11.82930619]
[1748920002610,0.55,2611.7,2611.1,0.02]
[1748920002809,4.60675686,2611.2,2611.1,0.02]
[1748920003169,4.8401,2611.2,2611.1,0.02]
[1748920003382,0.7771,2611.2,2611.1,0.02]
[1748920003585,4.8401,2611.2,2611.1,0.02]
[1748920003812,0.7771,2611.2,2611.1,0.02]
[1748920004021,4.063,2611.3,2611.1,3.84979842]
[1748920004222,4.063,2611.3,2611.1,0.02]
[1748920004615,4.60621218,2611.6,2611.1,0.02]
[1748920004616,4.064,2611.4,2611.1,0.02]
[1748920004811,4.063,2611.3,2611.1,0.02]
[1748920005116,7.89259727,2611.3,2611.1,0.02]
[1748920005311,4.063,2611.3,2611.1,0.02]
[1748920005623,7.89260422,2611.3,2611.1,0.02]
[1748920005831,0.7771,2611.2,2610.4,1.3525796]
[1748920006002,0.7771,2610.6,2610.4,1.3525796]
[1748920006322,4.075,2610.5,2610.4,1.3525796]
[1748920006541,3.82997532,2611.0,2610.4,5.18334437]
[1748920006747,4.074,2610.8,2610.4,1.3525796]
[1748920006889,0.8293,2611.4,2610.5,5.27872114]
[1748920007083,0.8293,2611.4,2610.5,0.03830501]
[1748920007293,0.8293,2611.4,2610.5,8.0]
[1748920007294,3.82984357,2611.1,2610.5,8.0]
[1748920007527,0.8098,2611.0,2610.5,8.0]
[1748920007742,0.8098,2611.0,2610.5,11.83061955]
[1748920007942,3.8300969,2610.9,2610.4,1.3525796]
[1748920008094,0.8098,2610.7,2610.4,1.3525796]
[1748920008296,4.083,2610.9,2610.5,3.83059789]
[1748920008494,4.087,2610.9,2610.6,3.83048864]
[1748920008712,4.086,2610.9,2610.5,3.83064077]
[1748920008919,4.085,2610.9,2610.6,0.03830336]
[1748920009157,4.085,2610.9,2610.7,3.83039031]
[1748920009355,0.8304,2611.7,2610.8,13.69058611]
[1748920009515,0.8304,2611.7,2611.3,3.82942309]
[1748920009832,0.8304,2611.7,2611.4,8.0]
[1748920010196,4.9304,2611.7,2610.5,8.0]
[1748920010397,4.107,2611.6,2611.0,3.8298046]
[1748920010627,7.93609099,2611.6,2611.0,3.8298046]
[1748920011105,0.8304,2611.2,2610.4,1.3775796]
[1748920011405,0.8304,2611.2,2610.8,8.0]
[1748920011834,0.8304,2611.2,2610.7,11.83033782]
[1748920012033,4.9364,2611.2,2610.7,11.83033782]
[1748920012207,4.9364,2611.2,2610.4,1.3775796]
[1748920012208,4.9404,2611.2,2610.4,6.61799573]
[1748920012413,4.9404,2611.2,2610.6,8.0]
[1748920012624,4.9404,2611.2,2610.9,3.83000284]
[1748920012625,0.8304,2611.2,2610.9,3.83000284]
[1748920012803,0.8304,2611.2,2610.8,3.8302436]
[1748920013136,0.8304,2611.2,2610.7,0.03829806]
[1748920013347,0.8304,2611.2,2610.8,11.83013853]
[1748920013838,3.83068377,2610.5,2610.4,1.3525796]
[1748920014041,8.72218377,2610.5,2610.4,1.3525796]
[1748920014398,0.7795,2610.5,2610.4,1.3525796]
[1748920014598,4.9065,2610.5,2610.4,1.3525796]
[1748920015697,0.7795,2610.5,2610.0,5.24041613]
[1748920015957,12.9544,2611.0,2610.3,5.24041613]
[1748920016118,16.78444804,2611.0,2610.4,3.83078453]
[1748920016318,12.9544,2611.0,2610.3,9.07134729]
[1748920016652,16.78435951,2611.0,2610.2,3.8310831]
[1748920016949,16.78435951,2611.0,2610.1,3.83122674]
[1748920016950,3.83051215,2610.7,2610.1,3.83122674]
[1748920017146,4.66165235,2610.6,2610.0,3.83136699]
[1748920017443,5.51084253,2610.6,2610.0,3.83136699]
[1748920017823,1.68029018,2610.6,2610.0,3.83136699]
[1748920018252,1.68029018,2610.6,2610.1,3.83126503]
[1748920018556,0.8311,2610.6,2610.0,3.83135454]
[1748920018703,4.6616503,2610.6,2610.0,3.83135454]
[1748920019526,0.8311,2610.6,2610.1,3.83126799]
[1748920019723,0.8311,2610.6,2610.2,3.83106547]
[1748920020035,0.7795,2611.0,2610.3,3.83093638]
[1748920020239,0.7795,2611.0,2610.7,3.83025762]
[1748920020438,5.24041613,2612.1,2610.6,0.025]
[1748920020439,0.7795,2611.5,2610.6,0.025]
[1748920020641,4.9085,2611.5,2610.5,1.106]
[1748920020803,8.73779945,2611.5,2610.6,0.03830226]
[1748920021008,5.08606807,2611.4,2610.9,3.83009225]
[1748920021446,5.08606807,2611.4,2610.8,3.83018289]
[1748920021667,5.08609163,2611.4,2610.8,3.83019623]
[1748920022007,1.25668756,2611.4,2610.9,3.83009185]
[1748920022334,0.7795,2611.5,2610.8,5.24041613]
[1748920022648,0.7795,2611.5,2611.1,3.82973927]
[1748920022847,4.9085,2611.5,2611.0,3.82988695]
[1748920023043,8.73780766,2611.5,2610.9,3.83004383]
[1748920023207,4.9085,2611.5,2610.6,8.0]
[1748920023408,3.82951509,2611.3,2610.7,3.83028483]
[1748920023748,0.49085,2611.4,2610.6,11.83053503]
[1748920023749,4.32027385,2611.4,2610.8,3.83023345]
[1748920024123,0.49085,2611.4,2610.7,0.03829974]
[1748920024519,0.49085,2611.4,2610.8,3.8302436]
[1748920024910,0.49085,2611.4,2611.0,3.82983413]
[1748920025450,4.123,2611.3,2610.9,3.83006984]
[1748920026254,0.49085,2611.4,2610.9,3.83006984]
[1748920026451,4.62995702,2611.3,2610.6,8.0]
[1748920026611,3.82975465,2611.2,2610.6,11.8304931]
[1748920026951,3.82977046,2611.2,2610.6,3.83039578]
[1748920027180,8.45949999,2611.3,2610.6,3.83039578]
[1748920027307,0.50995702,2611.3,2610.7,3.8303765]
[1748920027512,4.119,2611.2,2610.9,3.83004568]
[1748920027907,0.771,2611.1,2609.8,3.85662959]
[1748920028164,3.83040237,2610.7,2610.1,3.83118583]
[1748920028329,0.771,2610.5,2610.2,3.83110827]
[1748920028746,0.771,2610.8,2610.2,0.03830676]
[1748920029071,4.127,2610.7,2610.2,3.83109532]
[1748920029571,4.127,2610.7,2610.0,11.83139654]
[1748920029572,5.38285678,2610.7,2610.3,3.83097099]
[1748920029880,9.21325064,2610.7,2610.2,3.83106409]
[1748920030180,5.38285678,2610.7,2610.2,3.83106409]
[1748920030330,9.21326122,2610.7,2610.2,3.83106409]
[1748920030848,5.38285678,2610.7,2610.2,3.83102609]
[1748920031050,0.99841543,2610.6,2610.1,3.83120525]
[1748920031248,4.82900039,2610.6,2610.0,3.83135707]
[1748920031974,4.82900039,2610.6,2610.1,3.83123849]
[1748920032537,4.82900039,2610.6,2610.2,0.36605436]
[1748920032739,0.89560004,2610.5,2610.3,0.36605436]
[1748920032968,4.72628381,2610.5,2610.4,0.36605436]
[1748920033166,0.89560004,2610.5,2610.4,0.36605436]
[1748920034664,4.72628381,2610.5,2610.4,0.36605436]
[1748920035050,0.89560004,2610.5,2610.4,0.36605436]
[1748920035990,5.55908381,2610.5,2610.4,0.36605436]
[1748920036192,3.83089742,2610.4,2609.9,0.66666667]
[1748920036363,5.05099812,2610.3,2610.0,0.36601449]
[1748920036559,8.88199799,2610.3,2610.1,0.36601449]
[1748920036779,8.88199799,2610.3,2609.9,0.66666667]
[1748920036780,5.05099812,2610.3,2610.2,0.36601449]
[1748920037448,8.8819754,2610.3,2610.2,0.36601449]
[1748920039352,5.05099812,2610.3,2610.2,0.36601449]
[1748920039547,7.93597728,2610.3,2610.2,0.36601449]
[1748920039967,8.73587728,2610.3,2610.2,0.3658986]
[1748920041390,0.7999,2610.3,2610.2,0.3658986]
[1748920041602,8.73287728,2610.3,2610.2,0.3658986]
[1748920041749,0.7999,2610.3,2610.2,0.3658986]
[1748920041951,4.9019,2610.3,2610.2,0.3658986]
[1748920042665,0.7999,2610.3,2610.2,0.3658986]
[1748920042865,4.8999,2610.3,2610.2,0.3658986]
[1748920043064,0.8323,2610.6,2610.2,4.19702265]
[1748920043289,4.099,2610.4,2610.3,0.3658986]
[1748920043663,4.099,2610.4,2610.3,0.36601544]
[1748920043877,0.8323,2610.6,2610.3,0.36601544]
[1748920044078,0.8042,2611.5,2610.4,4.22180473]
[1748920044262,4.63342914,2611.5,2610.9,9.07040636]
[1748920044479,4.9102,2611.5,2610.9,5.24041613]
[1748920044685,5.78413025,2611.5,2611.0,0.36601544]
[1748920044884,5.78413025,2611.5,2611.1,0.36601544]
[1748920045252,5.78413025,2611.5,2611.2,0.36601544]
[1748920045593,5.78413025,2611.5,2611.3,0.36601544]
[1748920045890,1.67813025,2611.5,2611.4,0.36601544]
[1748920046093,4.9082,2611.5,2611.4,0.36601544]
[1748920046599,4.103,2611.5,2611.4,0.36601544]
[1748920046796,0.02,2611.9,2611.4,0.39101544]
[1748920047009,0.02,2611.9,2611.5,5.60643157]
[1748920047300,0.02,2611.9,2611.6,0.36601544]
[1748920047482,0.02,2611.9,2611.7,0.36601544]
[1748920047817,0.02,2611.9,2611.8,0.36601544]
[1748920048096,4.124,2611.9,2611.8,0.36601544]
[1748920048458,8.82746052,2611.9,2611.8,0.36601544]
[1748920048663,9.58946052,2611.9,2611.8,0.36601544]
[1748920049561,0.782,2611.9,2611.8,0.36601544]
[1748920049757,4.885,2611.9,2611.8,0.36601544]
[1748920049962,8.71363049,2611.9,2611.8,0.36601544]
[1748920050863,3.82878528,2611.8,2611.2,3.82965686]
[1748920051094,3.82878528,2611.8,2611.3,0.3652283]
[1748920051273,5.08301248,2611.8,2611.4,0.3652283]
[1748920051458,3.82910229,2611.6,2611.5,0.3652283]
[1748920051895,3.82923777,2611.5,2610.7,9.159]
[1748920052064,3.82923777,2611.5,2610.9,3.82997581]
[1748920052267,4.101,2611.4,2610.9,3.82995566]
[1748920052469,4.101,2611.4,2611.0,3.82992996]
[1748920052903,4.101,2611.4,2610.9,3.83003365]
[1748920053120,4.101,2611.4,2610.7,8.025]
[1748920053283,4.101,2611.4,2611.2,0.6]
[1748920053622,4.101,2611.4,2610.9,3.83006347]
[1748920054120,0.02,2611.9,2611.4,3.829228]
[1748920054282,0.02,2611.9,2611.5,0.03828716]
[1748920054695,0.02,2611.9,2611.6,3.82905706]
[1748920055018,0.02,2611.9,2611.7,3.82891918]
[1748920055884,0.02,2611.9,2611.5,3.86747625]
[1748920056085,0.02,2611.9,2611.6,3.8290703]
[1748920056499,0.02,2611.9,2611.7,3.82881461]
[1748920056705,0.02,2612.9,2612.2,5.26541613]
[1748920056888,0.02,2612.9,2612.5,3.82762347]
[1748920057103,0.02,2612.9,2612.8,3.82731169]
[1748920057469,0.02,2612.9,2612.5,0.37780319]
[1748920057773,0.02,2612.9,2612.2,11.85317099]
[1748920057974,7.97721741,2612.9,2612.3,3.82804425]
[1748920058171,0.02,2612.9,2612.6,3.82750983]
[1748920058369,0.02,2612.9,2612.4,0.6]
[1748920058788,3.84721641,2612.9,2612.4,0.6]
[1748920058988,0.76742651,2612.8,2612.4,0.6]
[1748920059273,4.141,2612.7,2612.4,0.6]
[1748920060672,3.82775119,2612.5,2612.4,0.6]
[1748920060876,4.62555119,2612.5,2612.4,0.6]
[1748920061106,3.82796433,2612.4,2611.8,3.85369197]
[1748920061313,0.46257643,2612.3,2611.5,9.159]
[1748920061472,4.138,2612.2,2611.7,8.0]
[1748920062068,4.138,2612.2,2611.7,3.82888183]
[1748920062679,7.96629401,2612.2,2611.7,8.0]
[1748920062914,7.96629401,2612.2,2611.7,11.82891036]
[1748920062915,4.138,2612.2,2611.7,11.82891036]
[1748920063218,4.93461008,2612.2,2611.9,0.6]
[1748920063416,4.133,2612.2,2612.0,3.82847383]
[1748920063716,4.133,2612.2,2611.9,0.6]
[1748920063717,4.135,2612.2,2611.9,4.42861556]
[1748920064118,0.7978,2612.5,2612.0,8.0]
[1748920064424,4.134,2612.4,2611.9,8.6]
[1748920064712,3.8281392,2612.3,2611.9,0.6]
[1748920064914,5.00994458,2612.4,2611.9,0.6]
[1748920065114,3.82848392,2612.0,2611.9,0.6]
[1748920065294,3.82827888,2612.2,2611.9,0.6]
[1748920065495,3.82836564,2612.1,2611.9,0.6]
[1748920065716,4.133,2612.0,2611.9,0.6]
[1748920066416,7.96148392,2612.0,2611.9,0.6]
[1748920066591,4.133,2612.0,2611.9,0.6]
[1748920067520,7.96148392,2612.0,2611.9,0.6]
[1748920067718,4.133,2612.0,2611.9,0.6]
[1748920067892,8.45134842,2612.0,2611.9,0.6]
[1748920068721,8.45134842,2612.0,2611.5,8.0]
[1748920069227,3.82868605,2611.9,2611.4,9.134]
[1748920069384,8.45140791,2612.0,2611.4,4.96335776]
[1748920069580,8.45140791,2612.0,2611.4,1.134]
[1748920069785,3.82873686,2611.9,2611.4,1.134]
[1748920070121,3.82900964,2611.7,2611.4,1.134]
[1748920070419,3.82884132,2611.8,2611.4,1.134]
[1748920071588,3.82884132,2611.8,2611.4,1.50965707]
[1748920072531,3.82902378,2611.7,2611.4,1.50965707]
[1748920072858,0.96966535,2611.7,2611.4,1.134]
[1748920073011,2.03887731,2611.9,2610.9,8.025]
[1748920073012,3.82961723,2611.3,2610.9,8.025]
[1748920073207,3.82990781,2611.1,2610.8,1.144]
[1748920073423,3.82968634,2611.2,2610.8,1.144]
[1748920073604,4.118,2611.2,2610.8,1.144]
[1748920073803,7.94774467,2611.2,2611.0,0.6]
[1748920074042,5.24041613,2612.5,2611.0,0.81172085]
[1748920074248,8.0,2612.6,2611.4,8.0]
[1748920074249,0.7623,2612.0,2611.4,8.0]
[1748920074454,4.118,2611.9,2611.4,11.82921956]
[1748920075392,4.118,2611.9,2611.4,3.82925542]
[1748920075592,4.118,2611.9,2611.5,8.0]
[1748920075827,4.118,2611.9,2611.4,8.0]
[1748920075997,4.118,2611.9,2611.4,11.82930027]
[1748920076215,8.81755629,2611.9,2611.4,11.82930027]
[1748920076522,8.81755629,2611.9,2611.4,8.0]
[1748920076721,8.81755629,2611.9,2611.4,3.829354]
[1748920076917,0.87088756,2611.9,2611.4,3.829354]
[1748920077106,4.115,2611.8,2611.4,3.829354]
[1748920077654,4.115,2611.8,2611.0,8.6]
[1748920077655,3.82923548,2611.5,2611.0,8.6]
[1748920077857,0.02,2612.9,2611.4,13.24041613]
[1748920078057,0.02,2612.9,2612.1,8.0]
[1748920078222,3.8276078,2612.6,2612.1,8.0]
[1748920078418,3.82751441,2612.7,2612.1,8.0]
[1748920078617,3.82773862,2612.6,2612.1,8.0]
[1748920078919,7.99075672,2612.5,2611.9,11.82860613]
[1748920079251,4.54577386,2612.5,2611.9,11.82860613]
[1748920079456,8.3735548,2612.5,2611.9,11.82860613]
[1748920079669,4.54577386,2612.5,2611.8,3.82877033]
[1748920079819,0.91307859,2612.4,2611.8,8.03828305]
[1748920080014,4.54577386,2612.5,2611.8,8.03828305]
[1748920080218,0.7574,2612.6,2612.2,3.82812921]
[1748920080419,4.159,2612.5,2612.2,3.82812921]
[1748920080665,1.20110539,2612.9,2612.2,0.0382798]
[1748920080870,4.159,2612.6,2612.3,3.82804425]
[1748920081366,4.64358009,2612.9,2612.2,3.82814927]
[1748920081575,4.157,2612.6,2612.3,3.82802482]